fUSD/lending_fUSD_20240718
["ID","MTS","AMOUNT","RATE_DAILY","PERIOD"]
[332562864,1721294107527,-500.0,0.00045205,120]
[332562865,1721294107566,-500.0,0.00045205,120]
[332562866,1721294107604,-500.0,0.00045205,120]
[332562867,1721294107643,-793.0,0.00045205,30]
[332562868,1721294107686,-500.0,0.00045205,120]
[332562869,1721294107732,-500.0,0.00045205,120]
[332562870,1721294107771,-500.0,0.00045205,120]
[332562871,1721294107809,-500.0,0.00045205,120]
[332562872,1721294107847,-500.0,0.00045205,120]
[332562873,1721294107885,-500.0,0.00045205,120]
[332562874,1721294107924,-249.71369589,0.00045205,120]
[332562875,1721294107966,-3000.0,0.00045205,120]
[332562876,1721294108008,-936.79,0.00045205,30]
[332562877,1721294108047,-150.0,0.00045212,30]
[332562878,1721294108089,-150.0,0.00045227,30]
[332562879,1721294108130,-150.0,0.00045253,30]
[332562880,1721294108173,-150.0,0.00045255,30]
[332562881,1721294108214,-151.0,0.0004526,120]
[332562882,1721294108255,-150.0,0.00045281,30]
[332562883,1721294108295,-150.0,0.00045288,30]
[332562884,1721294108336,-150.0,0.00045309,120]
[332562885,1721294108375,-150.0,0.0004531,30]
[332562886,1721294108520,-817.0,0.00045311,120]
[332562887,1721294108559,-150.0,0.00045325,30]
[332562888,1721294108598,-150.0,0.00045333,30]
[332562889,1721294108636,-936.79,0.00045342,30]
[332562890,1721294108679,-150.0,0.00045349,30]
[332562891,1721294108723,-150.0,0.00045368,30]
[332562892,1721294108763,-151.0,0.0004537,120]
[332562893,1721294108801,-150.0,0.00045411,30]
[332562894,1721294108840,-150.0,0.00045411,30]
[332562895,1721294108877,-150.0,0.00045411,30]
[332562896,1721294108915,-150.0,0.00045425,30]
[332562897,1721294108953,-150.0,0.00045439,30]
[332562898,1721294108991,-150.0,0.00045472,30]
[332562899,1721294109028,-1458.33,0.00045479,120]
[332562900,1721294109066,-3000.0,0.00045479,120]
[332562901,1721294109103,-936.79,0.00045479,30]
[332562902,1721294109142,-150.0,0.00045483,30]
[332562903,1721294109181,-150.0,0.00045488,30]
[332562904,1721294109221,-286.02047471,0.000455,120]
[332562905,1721294109261,-2771.75,0.000455,120]
[332562906,1721294109299,-150.0,0.00045533,30]
[332562907,1721294109336,-150.0,0.0004554,30]
[332562908,1721294109375,-150.0,0.0004554,30]
[332562909,1721294109414,-150.0,0.00045553,30]
[332562910,1721294109453,-15132.36347043,0.0004556,60]
[332562911,1721294109491,-150.0,0.00045566,30]
[332562912,1721294109530,-150.0,0.00045594,30]
[332562913,1721294109569,-150.0,0.00045598,30]
[332562914,1721294109608,-17506.0,0.000456,120]
[332562915,1721294109646,-936.79,0.00045616,30]
[332562916,1721294109685,-7771.0226,0.00045626,120]
[332562917,1721294109725,-150.0,0.00045644,30]
[332562918,1721294109764,-150.0,0.00045655,30]
[332562919,1721294109804,-150.0,0.00045656,30]
[332562920,1721294109841,-150.0,0.00045666,30]
[332562921,1721294109879,-150.0,0.00045687,120]
[332562922,1721294109920,-150.0,0.0004569,120]
[332562923,1721294109958,-1403.35,0.00045698,30]
[332562924,1721294110000,-38888.0,0.000457,30]
[332562925,1721294110038,-471.01485652,0.000457,33]
[332562926,1721294110081,-1642.0,0.000457,35]
[332562927,1721294110119,-150.0,0.00045713,30]
[332562928,1721294110158,-150.0,0.00045717,30]
[332562929,1721294110196,-150.0,0.00045721,30]
[332562930,1721294110235,-1403.35,0.00045726,30]
[332562931,1721294110275,-3000.0,0.00045753,120]
[332562932,1721294110313,-936.79,0.00045753,30]
[332562933,1721294110353,-1403.35,0.00045753,30]
[332562934,1721294110395,-150.0,0.0004577,30]
[332562935,1721294110434,-150.0,0.00045778,30]
[332562936,1721294110477,-150.0,0.0004578,30]
[332562937,1721294110516,-1403.35,0.0004578,30]
[332562938,1721294110553,-150.0,0.00045799,30]
[332562939,1721294110592,-150.0,0.00045799,30]
[332562940,1721294110630,-150.0,0.00045799,30]
[332562941,1721294110671,-251030.32727169,0.000458,30]
[332562942,1721294110711,-1403.35,0.00045808,30]
[332562943,1721294110748,-150.0,0.00045828,30]
[332562944,1721294110784,-1403.35,0.00045835,30]
[332562945,1721294110821,-150.0,0.0004584,30]
[332562946,1721294110858,-1403.35,0.00045863,30]
[332562947,1721294110895,-150.0,0.00045876,30]
[332562948,1721294110931,-615.55703485,0.0004588,60]
[332562949,1721294110972,-150.0,0.00045885,30]
[332562950,1721294111012,-936.79,0.0004589,30]
[332562951,1721294111051,-1403.35,0.0004589,30]
[332562952,1721294111092,-150.0,0.00045893,30]
[332562953,1721294111130,-2634.86456006,0.000459,60]
[332562954,1721294111168,-332999.999999,0.000459,30]
[332562955,1721294111207,-150.0,0.00045901,30]
[332562956,1721294111245,-1403.35,0.00045917,30]
[332562957,1721294111285,-151.0,0.00045918,120]
[332562958,1721294111324,-150.0,0.00045943,30]
[332562959,1721294111370,-1403.35,0.00045945,30]
[332562960,1721294111411,-150.0,0.00045954,30]
[332562961,1721294111451,-150.0,0.00045962,30]
[332562962,1721294111490,-1403.35,0.00045972,30]
[332562963,1721294111529,-260.52663837,0.0004599,120]
[332562964,1721294111567,-1000.0,0.00045999,120]
[332562965,1721294111607,-1403.35,0.00045999,30]
[332562966,1721294111644,-386.99292484,0.00046,120]
[332562967,1721294111684,-1000.0,0.00046,30]
[332562968,1721294111723,-2961.56463592,0.00046,30]
[332562969,1721294111763,-750.0,0.00046,120]
[332562970,1721294111801,-2000.0,0.00046,30]
[332562971,1721294111838,-2000.0,0.00046,30]
[332562972,1721294111876,-2000.0,0.00046,30]
[332562973,1721294111915,-2000.0,0.00046,30]
[332562974,1721294111959,-2000.0,0.00046,30]
[332562975,1721294111998,-2000.0,0.00046,30]
[332562976,1721294112037,-1000.0,0.00046,120]
[332562977,1721294112075,-1000.0,0.00046,120]
[332562978,1721294112115,-1000.0,0.00046,120]
[332562979,1721294112156,-1014.43,0.00046,120]
[332562980,1721294112197,-10429.39565737,0.00046,120]
[332562981,1721294112237,-2000.0,0.00046,60]
[332562982,1721294112278,-169.2,0.00046,96]
[332562983,1721294112321,-50000.0,0.00046,32]
[332562984,1721294112362,-50000.0,0.00046,32]
[332562985,1721294112403,-1901.0,0.00046,120]
[332562986,1721294112445,-1002.18,0.00046,120]
[332562987,1721294112488,-395.12262566,0.00046,30]
[332562988,1721294112527,-1200.0,0.00046,120]
[332562989,1721294112565,-6000.0,0.00046,120]
[332562990,1721294112709,-10115.12061091,0.00046,30]
[332562991,1721294112750,-877.0,0.00046,120]
[332562992,1721294112791,-2541.22031651,0.00046,120]
[332562993,1721294112832,-5534.2497376,0.00046,60]
[332562994,1721294112873,-1000000.0,0.00046,120]
[332562995,1721294112914,-150.0,0.00046,30]
[332562996,1721294112955,-150.0,0.00046007,30]
[332562997,1721294112997,-150.0,0.00046023,30]
[332562998,1721294113036,-3000.0,0.00046027,120]
[332562999,1721294113075,-936.79,0.00046027,30]
[332563000,1721294113116,-1403.35,0.00046027,30]
[332563001,1721294113156,-1455.34728363,0.0004603,30]
[332563002,1721294113200,-150.0,0.00046032,30]
[332563003,1721294113243,-9067.88365064,0.00046036,30]
[332563004,1721294113286,-172.98260254,0.00046043,30]
[332563005,1721294113328,-499.44866436,0.00046048,30]
[332563006,1721294113369,-10558.08564917,0.00046049,30]
[332563007,1721294113411,-639.53548672,0.00046052,30]
[332563008,1721294113451,-1403.35,0.00046054,30]
[332563009,1721294113495,-150.0,0.00046058,30]
[332563010,1721294113539,-150.0,0.00046058,30]
[332563011,1721294113581,-639.53548672,0.0004606,30]
[332563012,1721294113623,-9067.88365064,0.00046068,30]
[332563013,1721294113666,-95105.47312209,0.00046077,30]
[332563014,1721294113707,-10558.08564917,0.00046077,30]
[332563015,1721294113748,-1403.35,0.00046082,30]
[332563016,1721294113789,-150.0,0.00046085,30]
[332563017,1721294113829,-414.09888128,0.00046094,30]
[332563018,1721294113871,-95105.47312209,0.00046103,30]
[332563019,1721294113913,-639.53548672,0.00046108,30]
[332563020,1721294113953,-1403.35,0.00046109,30]
[332563021,1721294113992,-150.0,0.00046109,30]
[332563022,1721294114033,-150.0,0.0004611,30]
[332563023,1721294114072,-150.0,0.00046115,30]
[332563024,1721294114112,-9067.88365064,0.00046116,30]
[332563025,1721294114150,-414.09888128,0.00046118,30]
[332563026,1721294114186,-499.44866436,0.00046119,30]
[332563027,1721294114228,-150.0,0.00046121,30]
[332563028,1721294114268,-10558.08564917,0.00046133,30]
[332563029,1721294114307,-1403.35,0.00046136,30]
[332563030,1721294114346,-499.44866436,0.00046137,30]
[332563031,1721294114387,-10558.08564917,0.00046138,30]
[332563032,1721294114427,-58061.24201271,0.00046143,30]
[332563033,1721294114466,-150.0,0.00046146,30]
[332563034,1721294114506,-1455.34728363,0.0004615,30]
[332563035,1721294114546,-95105.47312209,0.00046153,30]
[332563036,1721294114591,-172.98260254,0.00046157,30]
[332563037,1721294114639,-13062.72802198,0.00046158,30]
[332563038,1721294128124,-500.0,0.00039,120]
[332563039,1721294128167,-3000.0,0.00041095,120]
[332563040,1721294128207,-3000.0,0.00041369,120]
[332563041,1721294128248,-3000.0,0.00041643,120]
[332563042,1721294128287,-1884.73845242,0.00041917,120]
[332563043,1721294128332,-1458.33,0.00046301,120]
[332563044,1721294128490,-1000.0,0.000464,120]
[332563045,1721294128535,-150.0,0.00046443,120]
[332563046,1721294128579,-1389.82423121,0.000465,120]
[332563047,1721294128619,-1341.61330136,0.000465,120]
[332563048,1721294128661,-1000000.0,0.000465,120]
[332563049,1721294128703,-151.0,0.00046575,120]
[332563050,1721294128751,-1800.0,0.000466,120]
[332563051,1721294128793,-258.40721472,0.000466,120]
[332563052,1721294128834,-79138.847,0.000467,120]
[332563053,1721294128874,-79138.848,0.000467,120]
[332563054,1721294128914,-79138.847,0.000467,120]
[332563055,1721294128952,-403.662,0.000467,120]
[332563056,1721294128994,-187.615,0.000467,120]
[332563057,1721294129031,-403.663,0.000467,120]
[332563058,1721294129067,-79138.848,0.000467,120]
[332563059,1721294129104,-187.615,0.000467,120]
[332563060,1721294129143,-403.663,0.000467,120]
[332563061,1721294129185,-79138.847,0.000467,120]
[332563062,1721294129225,-403.662,0.000467,120]
[332563063,1721294129265,-403.663,0.000467,120]
[332563064,1721294129306,-151.0,0.00046712,120]
[332563065,1721294129348,-821.30205914,0.00046716,120]
[332563066,1721294129388,-22322.59407329,0.000468,120]
[332563067,1721294129428,-211.42829134,0.0004695,120]
[332563068,1721294129467,-158.57371851,0.0004695,120]
[332563069,1721294129506,-409.0,0.00046986,120]
[332563070,1721294129546,-1999.999999,0.00047,120]
[332563071,1721294129587,-178.57533005,0.00047,120]
[332563072,1721294129627,-1560.06684096,0.00047,120]
[332563073,1721294129668,-516.0,0.00047,120]
[332563074,1721294129711,-8486.459559,0.00047,120]
[332563075,1721294129752,-1000000.0,0.00047,120]
[332563076,1721294129793,-4065.0,0.00047,117]
[332563077,1721294129831,-842.519,0.00047023,110]
[332563078,1721294129869,-1458.33,0.00047123,120]
[332563079,1721294129907,-151.0,0.00047233,120]
[332563080,1721294129947,-13141.24998411,0.0004738,120]
[332563081,1721294129990,-1000.0,0.00047399,120]
[332563082,1721294130031,-35479.9837134,0.000474,120]
[332563083,1721294130069,-1000.00000099,0.00047423,120]
[332563084,1721294130110,-1486876.72864916,0.0004744,120]
[332563085,1721294130151,-2660.05787971,0.0004748,120]
[332563086,1721294130192,-2491.52041541,0.000475,120]
[332563087,1721294130233,-437795.55,0.000475,120]
[332563088,1721294130274,-559201.36728622,0.000475,120]
[332563089,1721294136825,-150.0,0.00045,85]
[332563090,1721294136866,-169.2,0.00046,96]
[332563091,1721294136912,-1875.99402283,0.00047399,120]
[332563092,1721294136953,-1410.86337385,0.00047399,120]
[332563093,1721294136999,-440798.63271378,0.000475,120]
[332563094,1721294137038,-15132.36347043,0.0004756,60]
[332563095,1721294137078,-102057.06435123,0.00047654,120]
[332563096,1721294137118,-600.0,0.000477,120]
[332563097,1721294137158,-4254.06662667,0.000478,120]
[332563098,1721294137198,-25037.56622258,0.000478,90]
[332563099,1721294137240,-151.0,0.0004789,120]
[332563100,1721294137278,-10076.90775405,0.000479,60]
[332563101,1721294137318,-1458.33,0.00047945,120]
[332563102,1721294137355,-211.42829134,0.0004795,120]
[332563103,1721294137392,-158.57371851,0.0004795,120]
[332563104,1721294137430,-213.64518339,0.00047999,120]
[332563105,1721294137470,-591.27690783,0.00048,120]
[332563106,1721294137507,-887.88293444,0.00048,120]
[332563107,1721294137545,-700.0,0.00048,120]
[332563108,1721294137582,-1000.0,0.00048,120]
[332563109,1721294137618,-325.57707052,0.00048,120]
[332563110,1721294137654,-97819.23657133,0.00048,120]
[332563111,1721294137694,-10000.0,0.00048,120]
[332563112,1721294137734,-50000.0,0.00048,120]
[332563113,1721294137772,-4033.73570876,0.00048,120]
[332563114,1721294137813,-2541.2203165,0.00048,120]
[332563115,1721294137853,-12099.62955546,0.00048,60]
[332563116,1721294137892,-1000000.0,0.00048,120]
[332563117,1721294137932,-1000000.0,0.00048,120]
[332563118,1721294137970,-151.0,0.00048055,120]
[332563119,1721294138013,-1000000.0,0.00048269,120]
[332563120,1721294138053,-21570.0,0.0004827,90]
[332563121,1721294138093,-6000.0,0.00048288,120]
[332563122,1721294138133,-24868.27539259,0.00048323,120]
[332563123,1721294138173,-1390.94891276,0.000484,120]
[332563124,1721294138211,-1154.05774667,0.000484,120]
[332563125,1721294138382,-244.7,0.000484,120]
[332563126,1721294138424,-354.19437483,0.000484,120]
[332563127,1721294138470,-150.0,0.00048425,120]
[332563128,1721294138511,-160.64456867,0.000485,90]
[332563129,1721294138553,-1000000.0,0.000485,120]
[332563130,1721294138594,-151.0,0.00048548,120]
[332563131,1721294138634,-9675.16620798,0.00048647,120]
[332563132,1721294138676,-784.5122187,0.0004866,120]
[332563133,1721294138720,-15082.58155282,0.000487,120]
[332563134,1721294138761,-1458.33,0.00048767,120]
[332563135,1721294138803,-2753.8395674,0.000488,90]
[332563136,1721294138848,-30087.0,0.000488,120]
[332563137,1721294138889,-505.17476443,0.000488,120]
[332563138,1721294138932,-845.71316538,0.0004895,120]
[332563139,1721294138972,-211.42829134,0.0004895,120]
[332563140,1721294139012,-158.57371851,0.0004895,120]
[332563141,1721294139053,-410.0,0.00048986,120]
[332563142,1721294139095,-231.0,0.00049,120]
[332563143,1721294139135,-3000.0,0.00049,120]
[332563144,1721294139175,-637.0,0.00049,60]
[332563145,1721294139221,-94210.66472442,0.00049,120]
[332563152,1721294694417,550.0,0.00013,2]
[332563153,1721294815547,1836.30447952,0.00013,2]
[332563161,1721294857569,-152.86,0.000167,3]
[332563163,1721294857911,-258.37966097,0.000167,3]
[332563166,1721294858532,-500.0,0.000167,3]
[332563169,1721294859368,-500.0,0.000167,3]
[332563170,1721294860030,-500.0,0.000167,3]
[332563171,1721294860628,-500.0,0.000167,3]
[332563172,1721294861043,-452.63634111,0.000167,3]
[332563173,1721294862264,-308.26778285,0.000167,3]
[332563174,1721294863538,-384.25221715,0.000167,3]
[332563175,1721294863996,-307.089574,0.000167,3]
[332563176,1721294865114,-500.0,0.000167,3]
[332563177,1721294866794,-500.0,0.000167,3]
[332563178,1721294867327,-500.0,0.000167,3]
[332563179,1721294868534,-393.63497672,0.000167,3]
[332563180,1721294869130,-342.8794472,0.000167,3]
[332563181,1721294889639,-157.1205528,0.00015757,2]
[332563182,1721294889960,150.0,0.00013999,2]
[332563183,1721294889982,150.0,0.00013999,2]
[332563184,1721294890003,150.0,0.00013999,2]
[332563185,1721294890024,150.0,0.00013999,2]
[332563186,1721294890046,157.1205528,0.00013999,2]
[332563187,1721294890067,16109.84653271,0.00013999,2]
[332563265,1721295031651,-451.70954219,0.00015656,2]
[332563267,1721295031663,-300.0,0.00015656,2]
[332563269,1721295031674,-1536.03886963,0.00015657,2]
[332563270,1721295031688,-3406.03390733,0.00015657,2]
[332563272,1721295031701,-3064.60664569,0.00015657,2]
[332563273,1721295031715,-1666.21666469,0.00015657,2]
[332563274,1721295031730,-741.8811006,0.00015657,2]
[332563275,1721295031765,-1879.32771206,0.00015657,2]
[332563276,1721295031776,-2251.14613184,0.00015708,2]
[332563278,1721295031788,-784.34351086,0.00015708,2]
[332563279,1721295031802,-619.65174307,0.00015708,2]
[332563280,1721295031820,-1267.08179383,0.00015708,2]
[332563281,1721295031834,-1681.92646063,0.00015708,2]
[332563282,1721295031845,-302.0,0.00015755,2]
[332563283,1721295031856,-2111.78813937,0.00015756,2]
[332563284,1721295031878,-2522.06617273,0.00015756,2]
[332563285,1721295031892,-7384.92556584,0.00015756,2]
[332563286,1721295031907,-363.76455997,0.00015756,2]
[332563287,1721295031978,-6678.06297211,0.00015756,2]
[332563288,1721295031992,-5314.0001,0.00015756,2]
[332563289,1721295032005,-24706.68757123,0.00015756,2]
[332563290,1721295032017,-556.4906241,0.000167,2]
[332563291,1721295032028,-152.86,0.00016828,2]
[332563292,1721295032039,-212.67962649,0.00016968,2]
[332563293,1721295032052,-3875.21176501,0.00016968,3]
[332563294,1721295032063,-250.0,0.00017445,2]
[332563295,1721295032074,-2751.0,0.00017579,2]
[332563296,1721295032085,-243.09,0.00017646,2]
[332563298,1721295032096,-451.31,0.00017712,2]
[332563299,1721295032107,-1458.59245993,0.00018,2]
[332563300,1721295032118,-1924.45221331,0.00018068,2]
[332563301,1721295032129,-172.41,0.00018082,2]
[332563302,1721295032140,-250.0,0.00018293,2]
[332563303,1721295032152,-424.86921567,0.00018592,2]
[332563304,1721295032163,-427.51,0.00018593,2]
[332563305,1721295032174,-171.42492541,0.00018739,2]
[332563306,1721295032186,-2925.26078582,0.00018769,2]
[332563307,1721295032200,-347.54481381,0.00018769,2]
[332563308,1721295032211,-2613.49172089,0.0001877,3]
[332563309,1721295032445,-170.14,0.0001877,2]
[332563310,1721295032464,-170.14,0.0001877,2]
[332563311,1721295032478,-170.14,0.0001877,2]
[332563312,1721295032488,-170.14,0.0001877,2]
[332563313,1721295032497,-151.49,0.0001877,2]
[332563314,1721295032506,-200.37442428,0.0001877,2]
[332563315,1721295032516,-235.0,0.00018779,2]
[332563316,1721295032526,-4668.3003485,0.0001878,2]
[332563317,1721295032538,-935.03409399,0.0001878,2]
[332563318,1721295032553,-257.23433876,0.0001878,2]
[332563319,1721295032563,-747.70566124,0.0001878,2]
[332563320,1721295032575,-2333.50701761,0.0001878,2]
[332563321,1721295032586,-2207.40403079,0.0001878,2]
[332563322,1721295032597,-1325.14524,0.0001878,2]
[332563323,1721295032609,-5865.45045287,0.0001878,2]
[332563324,1721295032620,-672.3424,0.0001878,2]
[332563325,1721295032632,-2748.05976961,0.0001878,2]
[332563326,1721295032643,-567.12177962,0.0001878,2]
[332563333,1721295037828,-210.18261467,0.00015755,2]
[332563334,1721295037839,-1350.69357192,0.000167,2]
[332563335,1721295037848,-311350.43285564,0.0001878,2]
[332563336,1721295037863,-213001.45316828,0.0001878,2]
[332563337,1721295037872,-167.0,0.00018839,2]
[332563338,1721295037881,-155.65931188,0.00018865,2]
[332563339,1721295037891,-150.99,0.00018866,2]
[332563340,1721295037901,-2613.49172089,0.00018928,3]
[332563341,1721295037912,-159.77802033,0.00019,2]
[332563342,1721295037923,-155.0,0.00019,2]
[332563343,1721295037932,-200.03,0.00019081,2]
[332563344,1721295037942,-717.54836549,0.00019091,2]
[332563345,1721295037951,-151.475828,0.00019178,2]
[332563346,1721295037961,-400.0,0.0001941,2]
[332563347,1721295037971,-152.86,0.00019516,2]
[332563348,1721295037981,-200.0,0.00019573,2]
[332563349,1721295037990,-20907.9337671,0.0001987,4]
[332563350,1721295037999,-1283.02871489,0.00019877,2]
[332563351,1721295038009,-121879.81148204,0.0001988,2]
[332563352,1721295038019,-227.41308538,0.00019889,2]
[332563353,1721295038028,-15680.9503253,0.0001989,4]
[332563354,1721295038038,-100000.0,0.000199,2]
[332563355,1721295038047,-155.0,0.0002,2]
[332563356,1721295038056,-3328.389999,0.0002,2]
[332563357,1721295038066,-252.89719124,0.0002,2]
[332563358,1721295038075,-418.13870327,0.0002,2]
[332563359,1721295038085,-1509.00521141,0.0002,2]
[332563360,1721295038094,-1711.62255365,0.00020038,2]
[332563361,1721295038103,-200.0,0.0002005,2]
[332563362,1721295038112,-33975.3923716,0.00020114,4]
[332563363,1721295038122,-210791.8018,0.00020124,2]
[332563364,1721295038132,-285.84,0.00020138,2]
[332563365,1721295038141,-300.0,0.00020371,2]
[332563366,1721295038150,-167.0,0.00020393,2]
[332563367,1721295038160,-517.0,0.00020622,2]
[332563368,1721295038170,-500.0,0.000209,2]
[332563369,1721295038179,-5000.0,0.00021305,2]
[332563370,1721295038188,-180.0,0.00021397,2]
[332563371,1721295038197,-400.0,0.0002142,2]
[332563372,1721295038206,-151.87,0.00021464,2]
[332563373,1721295038215,-262.0,0.00021472,2]
[332563374,1721295038224,-285.84,0.00021508,2]
[332563375,1721295038233,-167.26,0.00021644,2]
[332563376,1721295038242,-543.95,0.00021644,2]
[332563377,1721295038251,-2613.49172089,0.00021821,4]
[332563378,1721295038262,-1711.62255356,0.00021832,2]
[332563379,1721295038274,-400.0,0.00021837,2]
[332563380,1721295038285,-336.26,0.00021918,2]
[332563382,1721295038296,-167.0,0.00021948,2]
[332563384,1721295038308,-5024.57959633,0.00022,14]
[332563386,1721295038319,-155.0,0.00022,2]
[332563388,1721295038331,-1829.22374046,0.00022,2]
[332563389,1721295038340,-152.86,0.00022205,2]
[332563391,1721295038351,-2613.49172089,0.0002289,4]
[332563393,1721295038361,-20000.0,0.000229,4]
[332563395,1721295038370,-600.0,0.00023197,2]
[332563397,1721295038379,-1928.2729651,0.00023555,2]
[332563399,1721295038388,-4343.934,0.00023576,2]
[332563401,1721295038397,-201.191,0.00023576,2]
[332563403,1721295038407,-638.804,0.00023576,2]
[332563405,1721295038417,-5818.0,0.00023576,2]
[332563407,1721295038426,-13310.973,0.00023576,2]
[332563409,1721295038436,-1072.0,0.00023576,2]
[332563411,1721295038445,-1711.62255356,0.00023627,2]
[332563413,1721295038454,-150.33804361,0.0002421,2]
[332563414,1721295038463,-152.86,0.00024893,2]
[332563417,1721295038473,-603.99999936,0.00025,2]
[332563419,1721295038483,-800.0,0.00025169,2]
[332563420,1721295038492,-1000.0,0.00025205,2]
[332563422,1721295038501,-1711.62255356,0.00025421,2]
[332563424,1721295038510,-2349.615138,0.00025929,2]
[332563426,1721295038519,-3647.734,0.00025929,2]
[332563428,1721295038528,-4200.910736,0.00025929,2]
[332563429,1721295038537,-2349.615138,0.00026253,2]
[332563431,1721295038546,-3647.734,0.00026253,2]
[332563433,1721295038555,-4200.910736,0.00026253,2]
[332563435,1721295038564,-2349.615138,0.00026577,2]
[332563437,1721295038574,-3647.734,0.00026577,2]
[332563439,1721295038583,-4200.910736,0.00026577,2]
[332563441,1721295038592,-2349.615138,0.00026902,2]
[332563443,1721295038601,-3647.734,0.00026902,2]
[332563445,1721295038611,-4200.910736,0.00026902,2]
[332563447,1721295038620,-500.0,0.00026936,2]
[332563449,1721295038630,-500.0,0.00026945,2]
[332563451,1721295038640,-500.0,0.00026954,2]
[332563453,1721295038651,-500.0,0.00026962,2]
[332563455,1721295038662,-500.0,0.00026971,2]
[332563457,1721295038672,-3973.24754201,0.00026978,2]
[332563459,1721295038681,-2613.49172089,0.00026979,5]
[332563461,1721295038691,-500.0,0.0002698,2]
[332563463,1721295038700,-500.0,0.00026989,2]
[332563465,1721295038710,-500.0,0.00026998,2]
[332563467,1721295038719,-1113.30303997,0.00027,7]
[332563469,1721295038728,-500.0,0.00027006,2]
[332563471,1721295038738,-500.0,0.00027015,2]
[332563473,1721295038747,-500.0,0.00027024,2]
[332563475,1721295038756,-500.0,0.00027033,2]
[332563477,1721295038765,-500.0,0.00027042,2]
[332563479,1721295038775,-932.53156505,0.00027049,2]
[332563481,1721295038784,-500.0,0.0002705,2]
[332563483,1721295038793,-500.0,0.00027059,2]
[332563485,1721295038803,-500.0,0.00027068,2]
[332563487,1721295038812,-500.0,0.00027077,2]
[332563489,1721295038821,-500.0,0.00027086,2]
[332563491,1721295038831,-500.0,0.00027094,2]
[332563493,1721295038840,-500.0,0.00027103,2]
[332563495,1721295038849,-500.0,0.00027112,2]
[332563497,1721295038858,-500.0,0.00027121,2]
[332563499,1721295038868,-500.0,0.0002713,2]
[332563500,1721295038877,-500.0,0.00027138,2]
[332563502,1721295038887,-500.0,0.00027147,2]
[332563504,1721295038896,-500.0,0.00027156,2]
[332563506,1721295038905,-1711.62255356,0.00027215,2]
[332563508,1721295038915,-2349.615138,0.00027226,2]
[332563510,1721295038924,-3647.734,0.00027226,2]
[332563511,1721295038933,-4200.910736,0.00027226,2]
[332563513,1721295038942,-448.97,0.00027397,10]
[332563515,1721295038951,-374.14,0.00027397,10]
[332563517,1721295038960,-152.86,0.00027581,2]
[332563519,1721295038970,-500.0,0.00027671,2]
[332563521,1721295038980,-543.95,0.00027714,2]
[332563523,1721295038989,-1711.62255356,0.0002901,15]
[332563525,1721295038998,-16770.40010977,0.0003,2]
[332563527,1721295039007,-152.86,0.0003027,2]
[332563529,1721295039016,-2613.49172089,0.00030794,6]
[332563530,1721295039025,-1711.62255356,0.00030804,15]
[332563532,1721295039034,-1711.62255356,0.00032598,15]
[332563534,1721295039043,-152.86,0.00032958,2]
[332563536,1721295039052,-336.26,0.00033151,120]
[332563538,1721295039061,-156.52,0.000335,31]
[332563540,1721295039070,-10736.9627433,0.00033784,30]
[332563542,1721295039079,-543.95,0.00033785,2]
[332563544,1721295039088,-2613.49172089,0.00034383,6]
[332563546,1721295039097,-1711.62255356,0.00034393,15]
[332563548,1721295039106,-207.64773856,0.00035287,7]
[332563550,1721295039115,-207.64773853,0.00035287,7]
[332563552,1721295039125,-207.64773853,0.00035287,7]